fUST/lending_fUST_20250923
["ID","MTS","AMOUNT","RATE_DAILY","PERIOD"]
[387061695,1758557457161,-1000.0,0.00020021,2]
[387061696,1758557457171,-1000.0,0.00020021,2]
[387061697,1758557457180,-358.77418997,0.00020049,2]
[387061698,1758557457191,-235.63105009,0.00020049,2]
[387061699,1758557457201,-151.0,0.000201,4]
[387061700,1758557457211,-500.0,0.00020162,2]
[387061701,1758557457224,-4905.15693104,0.00020174,2]
[387061702,1758557457234,-1000.0,0.00020196,2]
[387061703,1758557457243,-700.000001,0.000202,2]
[387061704,1758557457253,-168.0,0.00020222,2]
[387061705,1758557457262,-263.92962388,0.00020268,2]
[387061706,1758557457274,-272.26674577,0.00020268,2]
[387061707,1758557458416,-973.57383847,0.00019043,2]
[387061708,1758557458428,-137.34435547,0.00019043,2]
[387061709,1758557458439,-836.229483,0.00019043,2]
[387061710,1758557458450,-973.57383847,0.00019043,2]
[387061711,1758557458460,-151.0,0.00019178,2]
[387061712,1758557458469,-179.343767,0.00019178,2]
[387061713,1758557458479,-151.0,0.00019178,2]
[387061714,1758557458488,-29.80887714,0.00019178,2]
[387061715,1758557458499,-450.19112286,0.00019178,2]
[387061716,1758557458508,-144.79292608,0.00019178,2]
[387061717,1758557458519,-6.20707392,0.00019178,2]
[387061718,1758557458529,-151.0,0.00019178,2]
[387061719,1758557458538,-151.0,0.00019178,2]
[387061720,1758557458547,-151.0,0.00019178,2]
[387061721,1758557458556,-102.64071387,0.00019178,2]
[387061722,1758557458568,-48.35928613,0.00019178,2]
[387061723,1758557458578,-230.416522,0.00019178,2]
[387061724,1758557458587,-313.0,0.0001919,2]
[387061725,1758557458596,-382.0,0.00019396,2]
[387061726,1758557458606,-151.0,0.00019452,2]
[387061727,1758557458615,-67.30342144,0.00019452,2]
[387061728,1758557458630,-83.69657856,0.00019452,2]
[387061729,1758557458639,-151.0,0.00019452,2]
[387061730,1758557458649,-151.0,0.00019452,2]
[387061731,1758557458658,-131.06591465,0.00019452,2]
[387061732,1758557458669,-19.93408535,0.00019452,2]
[387061733,1758557458679,-151.0,0.00019452,2]
[387061734,1758557458688,-446.0,0.00019617,2]
[387061735,1758557458698,-433.12740638,0.00020268,2]
[387061736,1758557458710,-30.67622397,0.00020268,2]
[387061737,1758557458719,-257.48433712,0.00020268,2]
[387061738,1758557458728,-573.79298127,0.00020268,2]
[387061739,1758557458737,-889.43769583,0.00020268,2]
[387061740,1758557458747,-136.87933334,0.00020268,2]
[387061741,1758557458758,-1363.12066666,0.00020268,2]
[387061742,1758557458768,-502.14363543,0.00020268,2]
[387061743,1758557458777,-1500.0,0.00020268,2]
[387061744,1758557458786,-500.0,0.00020268,2]
[387061745,1758557458796,-1500.0,0.00020268,2]
[387061746,1758557458807,-484.98179962,0.00020268,2]
[387061747,1758557458816,-1500.0,0.00020268,2]
[387061748,1758557458826,-904.80842263,0.00020268,2]
[387061749,1758557458959,-255.90501161,0.00020268,2]
[387061750,1758557458970,-339.28656576,0.00020268,2]
[387061751,1758557458980,-175.21126476,0.00020268,2]
[387061752,1758557458991,-603.519,0.00020268,2]
[387061753,1758557459002,-721.26973524,0.00020268,2]
[387061754,1758557459013,-640.51482233,0.00020268,2]
[387061755,1758557459022,-286.19049397,0.00020273,2]
[387061756,1758557459031,-480.0,0.00020273,2]
[387061757,1758557459041,-480.0,0.00020273,2]
[387061758,1758557459050,-480.0,0.00020273,2]
[387061759,1758557459059,-480.0,0.00020273,2]
[387061760,1758557459069,-323.6589237,0.00020273,2]
[387061761,1758557459078,-514.67662306,0.00020273,2]
[387061762,1758557459088,-480.0,0.00020273,2]
[387061763,1758557459097,-456.94601991,0.00020273,2]
[387061764,1758557459107,-480.0,0.00020273,2]
[387061765,1758557459116,-480.0,0.00020273,2]
[387061766,1758557459126,-480.0,0.00020273,2]
[387061767,1758557459136,-543.83,0.00020273,2]
[387061768,1758557459146,-480.0,0.00020273,2]
[387061769,1758557459156,-480.0,0.00020273,2]
[387061770,1758557459166,-480.0,0.00020273,2]
[387061771,1758557459176,-480.0,0.00020273,2]
[387061772,1758557459186,-480.0,0.00020273,2]
[387061773,1758557459195,-480.0,0.00020273,2]
[387061774,1758557459205,-674.06,0.00020273,2]
[387061775,1758557459218,-511.91713334,0.00020273,2]
[387061776,1758557459228,-480.0,0.00020273,2]
[387061777,1758557459238,-480.0,0.00020273,2]
[387061778,1758557459247,-480.0,0.00020273,2]
[387061779,1758557459257,-480.0,0.00020273,2]
[387061780,1758557459267,-480.0,0.00020273,2]
[387061781,1758557459276,-480.0,0.00020273,2]
[387061782,1758557459287,-480.0,0.00020273,2]
[387061783,1758557459297,-480.0,0.00020273,2]
[387061784,1758557459307,-480.0,0.00020273,2]
[387061785,1758557459318,-493.31123027,0.00020273,2]
[387061786,1758557459327,-480.0,0.00020273,2]
[387061787,1758557459337,-480.0,0.00020273,2]
[387061788,1758557459347,-480.0,0.00020273,2]
[387061789,1758557459357,-480.0,0.00020273,2]
[387061790,1758557459366,-480.0,0.00020273,2]
[387061791,1758557459377,-480.0,0.00020273,2]
[387061792,1758557459387,-480.0,0.00020273,2]
[387061793,1758557459397,-1521.27,0.00020273,2]
[387061794,1758557459407,-480.0,0.00020273,2]
[387061795,1758557459417,-480.0,0.00020273,2]
[387061796,1758557459426,-480.0,0.00020273,2]
[387061797,1758557459436,-480.0,0.00020273,2]
[387061798,1758557459446,-480.0,0.00020273,2]
[387061799,1758557459456,-414.36271647,0.00020273,2]
[387061800,1758557459465,-480.0,0.00020273,2]
[387061801,1758557459475,-480.0,0.00020273,2]
[387061802,1758557459486,-480.0,0.00020273,2]
[387061803,1758557459496,-480.0,0.00020273,2]
[387061804,1758557459507,-480.0,0.00020273,2]
[387061805,1758557459516,-480.0,0.00020273,2]
[387061806,1758557459526,-607.10189632,0.00020273,2]
[387061807,1758557459535,-480.0,0.00020273,2]
[387061808,1758557459545,-491.77,0.00020273,2]
[387061809,1758557459554,-480.0,0.00020273,2]
[387061810,1758557459563,-1245.45,0.00020273,2]
[387061811,1758557459573,-594.7,0.00020273,2]
[387061812,1758557459582,-480.0,0.00020273,2]
[387061813,1758557459591,-729.2,0.00020273,2]
[387061814,1758557459601,-609.75553446,0.00020273,2]
[387061815,1758557459611,-510.27,0.00020273,2]
[387061816,1758557459620,-480.0,0.00020273,2]
[387061817,1758557459630,-648.06,0.00020273,2]
[387061818,1758557459640,-480.0,0.00020273,2]
[387061819,1758557459651,-710.07,0.00020273,2]
[387061820,1758557459666,-1757.11,0.00020273,2]
[387061821,1758557459677,-480.0,0.00020273,2]
[387061822,1758557459694,-480.0,0.00020273,2]
[387061823,1758557459717,-770.94,0.00020273,2]
[387061824,1758557459726,-480.0,0.00020273,2]
[387061825,1758557459736,-7310.32,0.00020273,2]
[387061826,1758557459746,-480.0,0.00020273,2]
[387061827,1758557459755,-211.81226273,0.00020273,2]
[387061828,1758557459764,-480.0,0.00020273,2]
[387061829,1758557459774,-480.0,0.00020273,2]
[387061830,1758557459783,-1010.96,0.00020273,2]
[387061831,1758557459792,-3683.72,0.00020273,2]
[387061832,1758557459801,-480.0,0.00020273,2]
[387061833,1758557459811,-1620.8,0.00020273,2]
[387061834,1758557459821,-480.0,0.00020273,2]
[387061835,1758557459831,-480.0,0.00020273,2]
[387061836,1758557459840,-480.0,0.00020273,2]
[387061837,1758557459851,-480.0,0.00020273,2]
[387061838,1758557459860,-480.0,0.00020273,2]
[387061839,1758557459869,-480.0,0.00020273,2]
[387061840,1758557459879,-480.0,0.00020273,2]
[387061841,1758557459888,-480.0,0.00020273,2]
[387061842,1758557459897,-480.0,0.00020273,2]
[387061843,1758557459907,-480.0,0.00020273,2]
[387061844,1758557459916,-480.0,0.00020273,2]
[387061845,1758557459925,-480.0,0.00020273,2]
[387061846,1758557459935,-804.3,0.00020273,2]
[387061847,1758557459945,-480.0,0.00020273,2]
[387061848,1758557459955,-480.0,0.00020273,2]
[387061849,1758557459964,-687.29,0.00020273,2]
[387061850,1758557459973,-480.0,0.00020273,2]
[387061851,1758557459983,-161.35,0.00020273,2]
[387061852,1758557459992,-480.0,0.00020273,2]
[387061853,1758557460002,-480.0,0.00020273,2]
[387061854,1758557460011,-480.0,0.00020273,2]
[387061855,1758557460021,-734.36,0.00020273,2]
[387061856,1758557460031,-480.0,0.00020273,2]
[387061857,1758557460041,-480.0,0.00020273,2]
[387061858,1758557460050,-480.0,0.00020273,2]
[387061859,1758557460060,-700.71,0.00020273,2]
[387061860,1758557460070,-480.0,0.00020273,2]
[387061861,1758557460080,-796.6,0.00020273,2]
[387061862,1758557460089,-480.0,0.00020273,2]
[387061863,1758557460099,-480.0,0.00020273,2]
[387061864,1758557460108,-480.0,0.00020273,2]
[387061865,1758557460118,-842.17,0.00020273,2]
[387061866,1758557460129,-480.0,0.00020273,2]
[387061867,1758557460139,-480.0,0.00020273,2]
[387061868,1758557460149,-480.0,0.00020273,2]
[387061869,1758557460159,-480.0,0.00020273,2]
[387061870,1758557460169,-480.0,0.00020273,2]
[387061871,1758557460179,-472.50669753,0.00020273,2]
[387061872,1758557460189,-558.37,0.00020273,2]
[387061873,1758557460199,-480.0,0.00020273,2]
[387061874,1758557460211,-749.4,0.00020273,2]
[387061875,1758557460231,-549.49,0.00020273,2]
[387061876,1758557460249,-385.06342864,0.00020273,2]
[387061877,1758557460259,-480.0,0.00020273,2]
[387061878,1758557460268,-550.6,0.00020273,2]
[387061879,1758557460278,-480.0,0.00020273,2]
[387061880,1758557460292,-480.0,0.00020273,2]
[387061881,1758557460309,-654.07,0.00020273,2]
[387061882,1758557460319,-480.0,0.00020273,2]
[387061883,1758557460328,-480.0,0.00020273,2]
[387061884,1758557460338,-480.0,0.00020273,2]
[387061885,1758557460347,-953.34,0.00020413,3]
[387061886,1758557460356,-476.68,0.00020413,3]
[387061887,1758557460366,-1845.84,0.00020414,3]
[387061888,1758557460383,-1025.46,0.00020414,3]
[387061889,1758557460393,-512.74,0.00020414,3]
[387061890,1758557460403,-500.0,0.00020436,2]
[387061891,1758557460413,-585.0898729,0.00020521,2]
[387061892,1758557460423,-190.62,0.00020547,2]
[387061893,1758557460432,-480.0,0.00020547,2]
[387061894,1758557460441,-294.92875363,0.00020547,2]
[387061895,1758557460451,-480.0,0.00020547,2]
[387061896,1758557460464,-480.0,0.00020547,2]
[387061897,1758557460474,-480.0,0.00020547,2]
[387061898,1758557460484,-156.64797273,0.00020547,2]
[387061899,1758557460493,-543.83,0.00020547,2]
[387061900,1758557460503,-245.85193194,0.00020547,2]
[387061901,1758557460512,-480.0,0.00020547,2]
[387061902,1758557460521,-480.0,0.00020547,2]
[387061903,1758557460531,-480.0,0.00020547,2]
[387061904,1758557460632,-480.0,0.00020547,2]
[387061905,1758557460643,-674.06,0.00020547,2]
[387061906,1758557460652,-480.0,0.00020547,2]
[387061907,1758557460661,-480.0,0.00020547,2]
[387061908,1758557460671,-480.0,0.00020547,2]
[387061909,1758557460680,-480.0,0.00020547,2]
[387061910,1758557460690,-480.0,0.00020547,2]
[387061911,1758557460699,-480.0,0.00020547,2]
[387061912,1758557460714,-480.0,0.00020547,2]
[387061913,1758557460723,-480.0,0.00020547,2]
[387061914,1758557460733,-418.66209392,0.00020547,2]
[387061915,1758557460742,-480.0,0.00020547,2]
[387061916,1758557460751,-480.0,0.00020547,2]
[387061917,1758557460760,-480.0,0.00020547,2]
[387061918,1758557460770,-175.93205468,0.00020547,2]
[387061919,1758557460780,-480.0,0.00020547,2]
[387061920,1758557460789,-480.0,0.00020547,2]
[387061921,1758557460799,-1521.27,0.00020547,2]
[387061922,1758557460809,-480.0,0.00020547,2]
[387061923,1758557460819,-480.0,0.00020547,2]
[387061924,1758557460828,-480.0,0.00020547,2]
[387061925,1758557460838,-480.0,0.00020547,2]
[387061926,1758557460847,-480.0,0.00020547,2]
[387061927,1758557460856,-480.0,0.00020547,2]
[387061928,1758557460866,-480.0,0.00020547,2]
[387061929,1758557460875,-480.0,0.00020547,2]
[387061930,1758557460885,-480.0,0.00020547,2]
[387061931,1758557460894,-480.0,0.00020547,2]
[387061932,1758557460904,-480.0,0.00020547,2]
[387061933,1758557460913,-491.77,0.00020547,2]
[387061934,1758557460922,-480.0,0.00020547,2]
[387061935,1758557460932,-1245.45,0.00020547,2]
[387061936,1758557460941,-480.0,0.00020547,2]
[387061937,1758557460950,-729.2,0.00020547,2]
[387061938,1758557460962,-510.27,0.00020547,2]
[387061939,1758557460971,-648.06,0.00020547,2]
[387061940,1758557460980,-480.0,0.00020547,2]
[387061941,1758557460990,-710.07,0.00020547,2]
[387061942,1758557460999,-1757.11,0.00020547,2]
[387061943,1758557461008,-480.0,0.00020547,2]
[387061944,1758557461017,-480.0,0.00020547,2]
[387061945,1758557461027,-770.94,0.00020547,2]
[387061946,1758557461036,-480.0,0.00020547,2]
[387061947,1758557461044,-7310.32,0.00020547,2]
[387061948,1758557461054,-480.0,0.00020547,2]
[387061949,1758557461063,-1010.96,0.00020547,2]
[387061950,1758557461073,-3683.72,0.00020547,2]
[387061951,1758557461082,-480.0,0.00020547,2]
[387061952,1758557461092,-1620.8,0.00020547,2]
[387061953,1758557461101,-480.0,0.00020547,2]
[387061954,1758557461112,-480.0,0.00020547,2]
[387061955,1758557461122,-480.0,0.00020547,2]
[387061956,1758557461132,-480.0,0.00020547,2]
[387061957,1758557461141,-480.0,0.00020547,2]
[387061958,1758557461151,-480.0,0.00020547,2]
[387061959,1758557461160,-480.0,0.00020547,2]
[387061960,1758557461170,-480.0,0.00020547,2]
[387061961,1758557461180,-480.0,0.00020547,2]
[387061962,1758557461190,-480.0,0.00020547,2]
[387061963,1758557461199,-480.0,0.00020547,2]
[387061964,1758557461211,-804.3,0.00020547,2]
[387061965,1758557461224,-480.0,0.00020547,2]
[387061966,1758557461233,-168.30863916,0.00020547,2]
[387061967,1758557461243,-687.29,0.00020547,2]
[387061968,1758557461252,-480.0,0.00020547,2]
[387061969,1758557461263,-480.0,0.00020547,2]
[387061970,1758557461272,-480.0,0.00020547,2]
[387061971,1758557461282,-480.0,0.00020547,2]
[387061972,1758557461292,-294.07190918,0.00020547,2]
[387061973,1758557461301,-734.36,0.00020547,2]
[387061974,1758557461312,-480.0,0.00020547,2]
[387061975,1758557461321,-480.0,0.00020547,2]
[387061976,1758557461330,-700.71,0.00020547,2]
[387061977,1758557461340,-480.0,0.00020547,2]
[387061978,1758557461350,-796.6,0.00020547,2]
[387061979,1758557461359,-480.0,0.00020547,2]
[387061980,1758557461368,-480.0,0.00020547,2]
[387061981,1758557461378,-368.42,0.00020547,2]
[387061982,1758557461387,-842.17,0.00020547,2]
[387061983,1758557461398,-480.0,0.00020547,2]
[387061984,1758557461407,-480.0,0.00020547,2]
[387061985,1758557461416,-480.0,0.00020547,2]
[387061986,1758557461426,-480.0,0.00020547,2]
[387061987,1758557461436,-480.0,0.00020547,2]
[387061988,1758557461446,-558.37,0.00020547,2]
[387061989,1758557461457,-455.55,0.00020547,2]
[387061990,1758557461466,-749.4,0.00020547,2]
[387061991,1758557461475,-549.49,0.00020547,2]
[387061992,1758557461484,-480.0,0.00020547,2]
[387061993,1758557461494,-550.6,0.00020547,2]
[387061994,1758557461504,-480.0,0.00020547,2]
[387061995,1758557461513,-480.0,0.00020547,2]
[387061996,1758557461523,-654.07,0.00020547,2]
[387061997,1758557461532,-480.0,0.00020547,2]
[387061998,1758557461541,-480.0,0.00020547,2]
[387061999,1758557461551,-480.0,0.00020547,2]
[387062000,1758557461560,-1000.0,0.00020568,2]
[387062001,1758557461569,-1500.0,0.00020568,2]
[387062002,1758557461578,-1500.0228115,0.00020568,2]
[387062003,1758557461588,-507.05500519,0.00020568,2]
[387062004,1758557461597,-1500.0,0.00020568,2]
[387062005,1758557461607,-504.06798637,0.00020568,2]
[387062006,1758557461616,-327.39020075,0.00020568,2]
[387062007,1758557461625,-1500.0,0.00020568,2]
[387062008,1758557461635,-15608.98118304,0.000206,2]
[387062009,1758557461644,-168.0,0.00020651,2]
[387062010,1758557461654,-1435.09675987,0.00020686,2]
[387062011,1758557461663,-500.0,0.0002071,2]
[387062012,1758557461672,-4905.15693104,0.00020721,2]
[387062013,1758557461682,-300.0,0.00020756,2]
[387062014,1758557461692,-420.0,0.00020756,2]
[387062015,1758557461702,-420.0,0.00020756,2]
[387062016,1758557461713,-420.0,0.00020756,2]
[387062017,1758557461724,-300.0,0.00020756,2]
[387062018,1758557461733,-1680.0,0.00020767,2]
[387062019,1758557461742,-2000.0,0.00020816,2]
[387062020,1758557461751,-2000.0,0.00020816,2]
[387062021,1758557461761,-500.0,0.00020816,2]
[387062022,1758557461770,-1000.0,0.00020816,2]
[387062023,1758557461779,-676.31057857,0.00020816,2]
[387062024,1758557462179,-639.16788215,0.00020816,2]
[387062025,1758557462190,-184.52153928,0.00020816,2]
[387062026,1758557462199,-480.0,0.00020821,2]
[387062027,1758557462210,-480.0,0.00020821,2]
[387062028,1758557462220,-543.83,0.00020821,2]
[387062029,1758557462231,-480.0,0.00020821,2]
[387062030,1758557462240,-480.0,0.00020821,2]
[387062031,1758557462249,-480.0,0.00020821,2]
[387062032,1758557462258,-480.0,0.00020821,2]
[387062033,1758557462268,-674.06,0.00020821,2]
[387062034,1758557462277,-480.0,0.00020821,2]
[387062035,1758557462286,-480.0,0.00020821,2]
[387062036,1758557462297,-480.0,0.00020821,2]
[387062037,1758557462306,-480.0,0.00020821,2]
[387062038,1758557462316,-480.0,0.00020821,2]
[387062039,1758557462325,-565.39020186,0.00020821,2]
[387062040,1758557462335,-480.0,0.00020821,2]
[387062041,1758557462344,-480.0,0.00020821,2]
[387062042,1758557462353,-480.0,0.00020821,2]
[387062043,1758557462361,-480.0,0.00020821,2]
[387062044,1758557462371,-329.74284097,0.00020821,2]
[387062045,1758557462380,-1521.27,0.00020821,2]
[387062046,1758557462389,-495.66907172,0.00020821,2]
[387062047,1758557462398,-480.0,0.00020821,2]
[387062048,1758557462407,-480.0,0.00020821,2]
[387062049,1758557462416,-480.0,0.00020821,2]
[387062050,1758557462425,-480.0,0.00020821,2]
[387062051,1758557462434,-480.0,0.00020821,2]
[387062052,1758557462443,-480.0,0.00020821,2]
[387062053,1758557462454,-373.92617075,0.00020821,2]
[387062054,1758557462464,-480.0,0.00020821,2]
[387062055,1758557462474,-480.0,0.00020821,2]
[387062056,1758557462483,-480.0,0.00020821,2]
[387062057,1758557462492,-491.77,0.00020821,2]
[387062058,1758557462502,-480.0,0.00020821,2]
[387062059,1758557462511,-1245.45,0.00020821,2]
[387062060,1758557462520,-480.0,0.00020821,2]
[387062061,1758557462529,-729.2,0.00020821,2]
[387062062,1758557462539,-510.27,0.00020821,2]
[387062063,1758557462548,-648.06,0.00020821,2]
[387062064,1758557462557,-480.0,0.00020821,2]
[387062065,1758557462567,-710.07,0.00020821,2]
[387062066,1758557462575,-1757.11,0.00020821,2]
[387062067,1758557462585,-480.0,0.00020821,2]
[387062068,1758557462594,-480.0,0.00020821,2]
[387062069,1758557462603,-770.94,0.00020821,2]
[387062070,1758557462613,-480.0,0.00020821,2]
[387062071,1758557462622,-7310.32,0.00020821,2]
[387062072,1758557462631,-480.0,0.00020821,2]
[387062073,1758557462640,-1010.96,0.00020821,2]
[387062074,1758557462650,-3683.72,0.00020821,2]
[387062075,1758557462660,-480.0,0.00020821,2]
[387062076,1758557462670,-1620.8,0.00020821,2]
[387062077,1758557462680,-480.0,0.00020821,2]
[387062078,1758557462690,-480.0,0.00020821,2]
[387062079,1758557462700,-480.0,0.00020821,2]
[387062080,1758557462711,-480.0,0.00020821,2]
[387062081,1758557462720,-480.0,0.00020821,2]
[387062082,1758557462730,-480.0,0.00020821,2]
[387062083,1758557462739,-480.0,0.00020821,2]
[387062084,1758557462749,-480.0,0.00020821,2]
[387062085,1758557462758,-480.0,0.00020821,2]
[387062086,1758557462767,-480.0,0.00020821,2]
[387062087,1758557462776,-263.99,0.00020821,2]
[387062088,1758557462786,-804.3,0.00020821,2]
[387062089,1758557462796,-480.0,0.00020821,2]
[387062090,1758557462806,-687.29,0.00020821,2]
[387062091,1758557462816,-480.0,0.00020821,2]
[387062092,1758557462828,-480.0,0.00020821,2]
[387062093,1758557462839,-480.0,0.00020821,2]
[387062094,1758557462849,-480.0,0.00020821,2]
[387062095,1758557462859,-734.36,0.00020821,2]
[387062096,1758557462868,-480.0,0.00020821,2]
[387062097,1758557462878,-480.0,0.00020821,2]
[387062098,1758557462887,-700.71,0.00020821,2]
[387062099,1758557462897,-796.6,0.00020821,2]
[387062100,1758557462907,-480.0,0.00020821,2]
[387062101,1758557462917,-480.0,0.00020821,2]
[387062102,1758557462926,-842.17,0.00020821,2]
[387062103,1758557462936,-480.0,0.00020821,2]
[387062104,1758557462946,-480.0,0.00020821,2]
[387062105,1758557462956,-480.0,0.00020821,2]
[387062106,1758557462965,-480.0,0.00020821,2]
[387062107,1758557462975,-480.0,0.00020821,2]
[387062108,1758557462985,-558.37,0.00020821,2]
[387062109,1758557462994,-749.4,0.00020821,2]
[387062110,1758557463003,-549.49,0.00020821,2]
[387062111,1758557463014,-480.0,0.00020821,2]
[387062112,1758557463024,-480.0,0.00020821,2]
[387062113,1758557463035,-550.6,0.00020821,2]
[387062114,1758557463046,-480.0,0.00020821,2]
[387062115,1758557463055,-654.07,0.00020821,2]
[387062116,1758557463065,-480.0,0.00020821,2]
[387062117,1758557463075,-480.0,0.00020821,2]
[387062118,1758557463084,-480.0,0.00020821,2]
[387062119,1758557463095,-160.0,0.00020829,2]
[387062120,1758557463105,-1680.0,0.00020856,2]
[387062121,1758557463114,-168.0,0.00020918,2]
[387062122,1758557463124,-5295.57234684,0.00020972,2]
[387062123,1758557463134,-500.0,0.00020984,2]
[387062124,1758557463144,-5818.34309598,0.00020995,2]
[387062125,1758557463154,-595.0,0.00021005,2]
[387062126,1758557463164,-155.0,0.00021095,2]
[387062127,1758557463173,-155.604,0.00021095,2]
[387062128,1758557463182,-409.06555352,0.00021095,2]
[387062129,1758557463192,-480.0,0.00021095,2]
[387062130,1758557463201,-543.83,0.00021095,2]
[387062131,1758557463212,-480.0,0.00021095,2]
[387062132,1758557463225,-480.0,0.00021095,2]
[387062133,1758557463235,-480.0,0.00021095,2]
[387062134,1758557463245,-480.0,0.00021095,2]
[387062135,1758557463254,-674.06,0.00021095,2]
[387062136,1758557463266,-442.92,0.00021095,2]
[387062137,1758557463276,-480.0,0.00021095,2]
[387062138,1758557463285,-480.0,0.00021095,2]
[387062139,1758557463295,-480.0,0.00021095,2]
[387062140,1758557463305,-480.0,0.00021095,2]
[387062141,1758557463315,-480.0,0.00021095,2]
[387062142,1758557463325,-480.0,0.00021095,2]
[387062143,1758557463334,-1521.27,0.00021095,2]
[387062144,1758557463344,-480.0,0.00021095,2]
[387062145,1758557463353,-480.0,0.00021095,2]
[387062146,1758557463363,-480.0,0.00021095,2]
[387062147,1758557463372,-480.0,0.00021095,2]
[387062148,1758557463382,-480.0,0.00021095,2]
[387062149,1758557463392,-480.0,0.00021095,2]
[387062150,1758557463401,-480.0,0.00021095,2]
[387062151,1758557463411,-480.0,0.00021095,2]
[387062152,1758557463421,-480.0,0.00021095,2]
[387062153,1758557463430,-491.77,0.00021095,2]
[387062154,1758557463440,-480.0,0.00021095,2]
[387062155,1758557463449,-1245.45,0.00021095,2]
[387062156,1758557463459,-480.0,0.00021095,2]
[387062157,1758557463468,-729.2,0.00021095,2]
[387062158,1758557463479,-510.27,0.00021095,2]
[387062159,1758557463488,-648.06,0.00021095,2]
[387062160,1758557463498,-480.0,0.00021095,2]
[387062161,1758557463507,-710.07,0.00021095,2]
[387062162,1758557463516,-1757.11,0.00021095,2]
[387062163,1758557463526,-480.0,0.00021095,2]
[387062164,1758557463536,-480.0,0.00021095,2]
[387062165,1758557463546,-770.94,0.00021095,2]
[387062166,1758557463556,-480.0,0.00021095,2]
[387062167,1758557463565,-7310.32,0.00021095,2]
[387062168,1758557463574,-1010.96,0.00021095,2]
[387062169,1758557463584,-3683.72,0.00021095,2]
[387062170,1758557463593,-480.0,0.00021095,2]
[387062171,1758557463604,-1620.8,0.00021095,2]
[387062172,1758557463614,-480.0,0.00021095,2]
[387062173,1758557463623,-480.0,0.00021095,2]
[387062174,1758557463633,-480.0,0.00021095,2]
[387062175,1758557463642,-480.0,0.00021095,2]
[387062176,1758557463652,-212.3,0.00021095,2]
[387062177,1758557463662,-480.0,0.00021095,2]
[387062178,1758557463675,-480.0,0.00021095,2]
[387062179,1758557463684,-480.0,0.00021095,2]
[387062180,1758557463694,-804.3,0.00021095,2]
[387062181,1758557463704,-480.0,0.00021095,2]
[387062182,1758557463714,-687.29,0.00021095,2]
[387062183,1758557463723,-480.0,0.00021095,2]
[387062184,1758557463734,-480.0,0.00021095,2]
[387062185,1758557463868,-480.0,0.00021095,2]
[387062186,1758557463878,-480.0,0.00021095,2]
[387062187,1758557463887,-734.36,0.00021095,2]
[387062188,1758557463896,-480.0,0.00021095,2]
[387062189,1758557463905,-310.67,0.00021095,2]
[387062190,1758557463915,-700.71,0.00021095,2]
[387062191,1758557463925,-796.6,0.00021095,2]
[387062192,1758557463935,-480.0,0.00021095,2]
[387062193,1758557463944,-399.24089421,0.00021095,2]
[387062194,1758557463954,-842.17,0.00021095,2]